[Event "*** Titled Tuesday Blitz"]
[Site "Chess.com"]
[Date "2021.04.20"]
[Round "5"]
[White "biostatistician"]
[Black "vugarrasulov"]
[Result "0-1"]
[WhiteElo "2609"]
[BlackElo "2835"]
[TimeControl "180+1"]
[EndTime "10:56:33 PDT"]
[Termination "vugarrasulov won by resignation"]

1. d4 {[%clk 0:02:59.2]} 1... d5 {[%clk 0:02:59.4]} 2. Nf3 {[%clk 0:03:00.1]}
2... Nf6 {[%clk 0:02:59.4]} 3. c4 {[%clk 0:02:58.9]} 3... dxc4 {[%clk
0:02:59.8]} 4. e3 {[%clk 0:02:59.2]} 4... Bg4 {[%clk 0:03:00]} 5. Bxc4 {[%clk
0:02:59.7]} 5... e6 {[%clk 0:03:00.2]} 6. Be2 {[%clk 0:02:59.3]} 6... a6 {[%clk
0:02:59.9]} 7. Ne5 {[%clk 0:02:59.2]} 7... Bxe2 {[%clk 0:02:58.9]} 8. Qxe2
{[%clk 0:03:00.1]} 8... Bd6 {[%clk 0:02:59.1]} 9. Nc4 {[%clk 0:02:58.6]} 9...
O-O {[%clk 0:02:56.4]} 10. O-O {[%clk 0:02:59]} 10... Nc6 {[%clk 0:02:55.5]} 11.
Nc3 {[%clk 0:02:59.1]} 11... e5 {[%clk 0:02:44.1]} 12. dxe5 {[%clk 0:02:53.9]}
12... Bxe5 {[%clk 0:02:43.6]} 13. Bd2 {[%clk 0:02:48.3]} 13... Qe7 {[%clk
0:02:39]} 14. Rad1 {[%clk 0:02:46.6]} 14... Rfd8 {[%clk 0:02:37.7]} 15. h3
{[%clk 0:02:41.6]} 15... Bxc3 {[%clk 0:02:28.2]} 16. Bxc3 {[%clk 0:02:40.2]}
16... Ne4 {[%clk 0:02:28.8]} 17. Rd3 {[%clk 0:02:17.2]} 17... Rxd3 {[%clk
0:02:23.3]} 18. Qxd3 {[%clk 0:02:17.8]} 18... Rd8 {[%clk 0:02:23.9]} 19. Qc2
{[%clk 0:02:17.9]} 19... Qe6 {[%clk 0:02:18]} 20. b3 {[%clk 0:02:13.9]} 20...
Nxc3 {[%clk 0:02:15.7]} 21. Qxc3 {[%clk 0:02:13.7]} 21... h6 {[%clk 0:02:15]}
22. Na5 {[%clk 0:02:06.4]} 22... Nxa5 {[%clk 0:02:07.7]} 23. Qxa5 {[%clk
0:02:06.9]} 23... Qc6 {[%clk 0:02:07.5]} 24. Qb4 {[%clk 0:01:57.6]} 24... b6
{[%clk 0:02:04.9]} 25. a4 {[%clk 0:01:52.1]} 25... a5 {[%clk 0:02:03.4]} 26. Qf4
{[%clk 0:01:50.3]} 26... Qc2 {[%clk 0:02:01.1]} 27. Qe5 {[%clk 0:01:46.3]} 27...
Qxb3 {[%clk 0:01:45.5]} 28. Qxc7 {[%clk 0:01:45.6]} 28... Rf8 {[%clk 0:01:45.3]}
29. Rc1 {[%clk 0:01:36.7]} 29... h5 {[%clk 0:01:43]} 30. Rc6 {[%clk 0:01:26.6]}
30... Qxa4 {[%clk 0:01:41.6]} 31. Rxb6 {[%clk 0:01:26.7]} 31... Qd1+ {[%clk
0:01:31.8]} 32. Kh2 {[%clk 0:01:26.9]} 32... Qd2 {[%clk 0:01:32.4]} 33. Ra6
{[%clk 0:00:56.7]} 33... Qxf2 {[%clk 0:01:31.5]} 34. Rxa5 {[%clk 0:00:56.9]}
34... g6 {[%clk 0:01:19.6]} 35. Qf4 {[%clk 0:00:57.1]} 35... Qd2 {[%clk
0:01:19.6]} 36. Rb5 {[%clk 0:00:53]} 36... Re8 {[%clk 0:01:16.2]} 37. Rb8 {[%clk
0:00:51.9]} 37... Qd7 {[%clk 0:01:13.4]} 38. Rxe8+ {[%clk 0:00:51.7]} 38... Qxe8
{[%clk 0:01:14.3]} 39. Kg3 {[%clk 0:00:51.3]} 39... Qe6 {[%clk 0:01:14.2]} 40.
Kf3 {[%clk 0:00:51.5]} 40... Qd5+ {[%clk 0:01:11.3]} 41. Qe4 {[%clk 0:00:51.1]}
41... Qd1+ {[%clk 0:01:10.2]} 42. Kf2 {[%clk 0:00:51.6]} 42... Qd6 {[%clk
0:01:09.8]} 43. Qf4 {[%clk 0:00:51.3]} 43... Qd2+ {[%clk 0:01:08.4]} 44. Kf3
{[%clk 0:00:51.4]} 44... Qd1+ {[%clk 0:01:07.2]} 45. Kf2 {[%clk 0:00:51.8]}
45... Qd5 {[%clk 0:01:07.7]} 46. h4 {[%clk 0:00:48.8]} 46... Qe6 {[%clk
0:01:03.8]} 47. g3 {[%clk 0:00:48.2]} 47... Qa2+ {[%clk 0:01:03.6]} 48. Kf3
{[%clk 0:00:48.6]} 48... Qb1 {[%clk 0:01:03.8]} 49. Kf2 {[%clk 0:00:48.5]} 49...
Qc2+ {[%clk 0:01:04.2]} 50. Kf3 {[%clk 0:00:48.8]} 50... Qd1+ {[%clk 0:01:02.5]}
51. Kf2 {[%clk 0:00:49]} 51... Qd2+ {[%clk 0:01:02.8]} 52. Kf3 {[%clk
0:00:49.3]} 52... Qe1 {[%clk 0:01:03.4]} 53. Qc4 {[%clk 0:00:35.1]} 53... Qh1+
{[%clk 0:01:02.8]} 54. Kf2 {[%clk 0:00:35.1]} 54... Qh2+ {[%clk 0:01:03.1]} 55.
Kf3 {[%clk 0:00:35.7]} 55... Qg1 {[%clk 0:01:03.4]} 56. Qe2 {[%clk 0:00:32.4]}
56... Kg7 {[%clk 0:01:01.9]} 57. Qb2+ {[%clk 0:00:31.8]} 57... Kh7 {[%clk
0:01:01.3]} 58. Qf2 {[%clk 0:00:31.5]} 58... Qh1+ {[%clk 0:00:58.8]} 59. Qg2
{[%clk 0:00:32]} 59... Qb1 {[%clk 0:00:59.2]} 60. Qd2 {[%clk 0:00:29.9]} 60...
Kh6 {[%clk 0:00:57.6]} 61. Kg2 {[%clk 0:00:25.2]} 61... Qe4+ {[%clk 0:00:56.5]}
62. Kh2 {[%clk 0:00:25.1]} 62... Qf5 {[%clk 0:00:55.7]} 63. Kg2 {[%clk
0:00:24.8]} 63... Qf6 {[%clk 0:00:55]} 64. Qf2 {[%clk 0:00:24.6]} 64... Qc6+
{[%clk 0:00:53.8]} 65. Qf3 {[%clk 0:00:24.5]} 65... Qd7 {[%clk 0:00:51.5]} 66.
Qf4+ {[%clk 0:00:24.3]} 66... Kg7 {[%clk 0:00:52.1]} 67. Qe5+ {[%clk 0:00:24.3]}
67... f6 {[%clk 0:00:52.2]} 68. Qf4 {[%clk 0:00:23]} 68... Qd5+ {[%clk
0:00:49.9]} 69. Qf3 {[%clk 0:00:23.4]} 69... Qa2+ {[%clk 0:00:46.6]} 70. Qf2
{[%clk 0:00:23.9]} 70... Qe6 {[%clk 0:00:46.9]} 71. Qf3 {[%clk 0:00:24.3]} 71...
Qd7 {[%clk 0:00:47.2]} 72. Qf4 {[%clk 0:00:23.8]} 72... Kf7 {[%clk 0:00:46]} 73.
Qc4+ {[%clk 0:00:24.2]} 73... Qe6 {[%clk 0:00:45.1]} 74. Qc7+ {[%clk 0:00:24.5]}
74... Qe7 {[%clk 0:00:45.4]} 75. Qxe7+ {[%clk 0:00:24.7]} 75... Kxe7 {[%clk
0:00:45.7]} 76. Kf3 {[%clk 0:00:25.6]} 76... Kd6 {[%clk 0:00:45]} 77. Ke4 {[%clk
0:00:25.9]} 77... Ke6 {[%clk 0:00:44.9]} 78. Kf4 {[%clk 0:00:19.3]} 78... Kd5
{[%clk 0:00:45.3]} 79. g4 {[%clk 0:00:11.8]} 79... hxg4 {[%clk 0:00:42.1]} 80.
Kxg4 {[%clk 0:00:12.7]} 80... Ke4 {[%clk 0:00:42.7]} 81. h5 {[%clk 0:00:12]}
81... f5+ {[%clk 0:00:43.1]} 82. Kg5 {[%clk 0:00:06.4]} 82... gxh5 {[%clk
0:00:44]} 83. Kxh5 {[%clk 0:00:06.6]} 83... Kxe3 {[%clk 0:00:44.4]} 0-1

[Event "*** Titled Tuesday Blitz"]
[Site "Chess.com"]
[Date "2021.04.20"]
[Round "5"]
[White "erdni1993"]
[Black "Sanyura"]
[Result "0-1"]
[WhiteElo "2421"]
[BlackElo "2605"]
[TimeControl "180+1"]
[EndTime "10:56:35 PDT"]
[Termination "Sanyura won by checkmate"]

1. e4 {[%clk 0:02:57.2]} 1... c6 {[%clk 0:01:47.7]} 2. d4 {[%clk 0:02:56.5]}
2... d5 {[%clk 0:01:44.2]} 3. Nd2 {[%clk 0:02:57.4]} 3... dxe4 {[%clk
0:01:43.6]} 4. Nxe4 {[%clk 0:02:58.3]} 4... Nf6 {[%clk 0:01:44.5]} 5. Nxf6+
{[%clk 0:02:58.2]} 5... exf6 {[%clk 0:01:45.4]} 6. c3 {[%clk 0:02:58.6]} 6...
Bd6 {[%clk 0:01:46]} 7. Bd3 {[%clk 0:02:56.8]} 7... O-O {[%clk 0:01:46.9]} 8.
Ne2 {[%clk 0:02:57]} 8... Re8 {[%clk 0:01:46.8]} 9. O-O {[%clk 0:02:56.6]} 9...
h5 {[%clk 0:01:47]} 10. Bf4 {[%clk 0:02:53.2]} 10... Bg4 {[%clk 0:01:39.3]} 11.
Bxd6 {[%clk 0:02:50.1]} 11... Qxd6 {[%clk 0:01:40.2]} 12. f3 {[%clk 0:02:49.3]}
12... Be6 {[%clk 0:01:37.7]} 13. Qd2 {[%clk 0:02:49]} 13... Nd7 {[%clk
0:01:35.9]} 14. Rfe1 {[%clk 0:02:49]} 14... Nf8 {[%clk 0:00:47.4]} 15. Qf4
{[%clk 0:02:21.3]} 15... Qd7 {[%clk 0:00:41]} 16. Ng3 {[%clk 0:02:16.7]} 16...
Ng6 {[%clk 0:00:31]} 17. Bxg6 {[%clk 0:02:14.2]} 17... fxg6 {[%clk 0:00:31.9]}
18. Ne4 {[%clk 0:02:06.6]} 18... Bd5 {[%clk 0:00:25]} 19. Nc5 {[%clk 0:02:01.8]}
19... Qf7 {[%clk 0:00:24.1]} 20. b3 {[%clk 0:01:59.7]} 20... g5 {[%clk
0:00:20.1]} 21. Qg3 {[%clk 0:01:50]} 21... h4 {[%clk 0:00:19.3]} 22. Qg4 {[%clk
0:01:48.9]} 22... Rxe1+ {[%clk 0:00:19]} 23. Rxe1 {[%clk 0:01:47.5]} 23... Re8
{[%clk 0:00:19.6]} 24. Rxe8+ {[%clk 0:01:39.3]} 24... Qxe8 {[%clk 0:00:20.5]}
25. Kf2 {[%clk 0:01:39.6]} 25... b6 {[%clk 0:00:13.8]} 26. Nd3 {[%clk 0:01:28]}
26... Qe7 {[%clk 0:00:12.2]} 27. c4 {[%clk 0:01:24.9]} 27... Bf7 {[%clk
0:00:09.4]} 28. Qc8+ {[%clk 0:01:22.5]} 28... Kh7 {[%clk 0:00:06.5]} 29. Qxc6
{[%clk 0:01:21.7]} 29... Bg6 {[%clk 0:00:06.9]} 30. Ne1 {[%clk 0:01:04.7]} 30...
Qa3 {[%clk 0:00:07.5]} 31. Qe6 {[%clk 0:00:47.5]} 31... Qb2+ {[%clk 0:00:07.6]}
32. Qe2 {[%clk 0:00:47.5]} 32... Qxd4+ {[%clk 0:00:07.8]} 33. Kf1 {[%clk
0:00:44]} 33... a5 {[%clk 0:00:06.3]} 34. g3 {[%clk 0:00:33.1]} 34... h3 {[%clk
0:00:05.5]} 35. g4 {[%clk 0:00:22.8]} 35... Qd6 {[%clk 0:00:03.7]} 36. Qf2
{[%clk 0:00:21.9]} 36... Qd1 {[%clk 0:00:03.5]} 37. Qe2 {[%clk 0:00:19.6]} 37...
Qb1 {[%clk 0:00:03.7]} 38. Kf2 {[%clk 0:00:18.4]} 38... Qa1 {[%clk 0:00:03.9]}
39. Kg3 {[%clk 0:00:18.3]} 39... Qd4 {[%clk 0:00:02.4]} 40. Kxh3 {[%clk
0:00:17.6]} 40... a4 {[%clk 0:00:02.4]} 41. bxa4 {[%clk 0:00:16.9]} 41... Qd7
{[%clk 0:00:02.6]} 42. Kg3 {[%clk 0:00:16.9]} 42... Qxa4 {[%clk 0:00:03.3]} 43.
Kg2 {[%clk 0:00:16.7]} 43... Qc6 {[%clk 0:00:03.6]} 44. Kg3 {[%clk 0:00:14.3]}
44... Qd6+ {[%clk 0:00:04.1]} 45. Kg2 {[%clk 0:00:14.8]} 45... Qd4 {[%clk
0:00:04.6]} 46. Kg3 {[%clk 0:00:12.3]} 46... Qf4+ {[%clk 0:00:04.9]} 47. Kg2
{[%clk 0:00:12.7]} 47... Qd6 {[%clk 0:00:04.6]} 48. Qe3 {[%clk 0:00:11.3]} 48...
Kh6 {[%clk 0:00:04.5]} 49. h4 {[%clk 0:00:11]} 49... Kh7 {[%clk 0:00:04.5]} 50.
hxg5 {[%clk 0:00:11.2]} 50... fxg5 {[%clk 0:00:04.8]} 51. Qxg5 {[%clk
0:00:11.7]} 51... Qb4 {[%clk 0:00:03.4]} 52. Qe5 {[%clk 0:00:08.5]} 52... Qxc4
{[%clk 0:00:02.9]} 53. Qh2+ {[%clk 0:00:08.2]} 53... Kg8 {[%clk 0:00:02.5]} 54.
Qb8+ {[%clk 0:00:08.6]} 54... Kh7 {[%clk 0:00:02.9]} 55. Qxb6 {[%clk 0:00:09.1]}
55... Qe2+ {[%clk 0:00:02.2]} 56. Qf2 {[%clk 0:00:10]} 56... Qe5 {[%clk
0:00:02.1]} 57. Qh4+ {[%clk 0:00:09.8]} 57... Kg8 {[%clk 0:00:01.9]} 58. Qf2
{[%clk 0:00:10.1]} 58... Qf4 {[%clk 0:00:01.8]} 59. Qg3 {[%clk 0:00:09.9]} 59...
Qd2+ {[%clk 0:00:02]} 60. Qf2 {[%clk 0:00:10.8]} 60... Qd5 {[%clk 0:00:02.4]}
61. Kg1 {[%clk 0:00:09.9]} 61... Bf7 {[%clk 0:00:02.7]} 62. a4 {[%clk
0:00:08.1]} 62... Qd1 {[%clk 0:00:03.4]} 63. Kg2 {[%clk 0:00:07.7]} 63... Qxa4
{[%clk 0:00:03.6]} 64. Nd3 {[%clk 0:00:07.2]} 64... Qc6 {[%clk 0:00:04.2]} 65.
Ne5 {[%clk 0:00:07.4]} 65... Qf6 {[%clk 0:00:04.6]} 66. Nxf7 {[%clk 0:00:07.8]}
66... Qxf7 {[%clk 0:00:05.5]} 67. Qe3 {[%clk 0:00:08.1]} 67... Qd5 {[%clk
0:00:06.1]} 68. Kg3 {[%clk 0:00:08.5]} 68... Kf7 {[%clk 0:00:06.1]} 69. Qf4+
{[%clk 0:00:09.4]} 69... Kg8 {[%clk 0:00:06.2]} 70. Qe4 {[%clk 0:00:08.9]} 70...
Qd6+ {[%clk 0:00:05.9]} 71. Qf4 {[%clk 0:00:08.4]} 71... Qd1 {[%clk 0:00:06.1]}
72. Qb8+ {[%clk 0:00:07.7]} 72... Kh7 {[%clk 0:00:06.7]} 73. Kg2 {[%clk
0:00:07.2]} 73... Qe2+ {[%clk 0:00:07.1]} 74. Kg3 {[%clk 0:00:07.5]} 74... Qe1+
{[%clk 0:00:07.6]} 75. Kf4 {[%clk 0:00:07.8]} 75... Qf2 {[%clk 0:00:07]} 76.
Qb1+ {[%clk 0:00:06.6]} 76... Kh8 {[%clk 0:00:05.9]} 77. Qe4 {[%clk 0:00:07.5]}
77... Qh2+ {[%clk 0:00:05.6]} 78. Kg5 {[%clk 0:00:08]} 78... Qh6+ {[%clk
0:00:05.9]} 79. Kf5 {[%clk 0:00:07.5]} 79... Qf6# {[%clk 0:00:06.8]} 0-1

[Event "*** Titled Tuesday Blitz"]
[Site "Chess.com"]
[Date "2021.04.20"]
[Round "5"]
[White "Nikolaj_6"]
[Black "ferch1ni"]
[Result "1/2-1/2"]
[WhiteElo "2609"]
[BlackElo "2442"]
[TimeControl "180+1"]
[EndTime "10:56:36 PDT"]
[Termination "Game drawn - insufficient material"]

1. e4 {[%clk 0:03:00.9]} 1... c5 {[%clk 0:02:59.6]} 2. Nf3 {[%clk 0:03:00.6]}
2... Nc6 {[%clk 0:02:59.8]} 3. d4 {[%clk 0:03:00]} 3... cxd4 {[%clk 0:03:00.7]}
4. Nxd4 {[%clk 0:03:00.1]} 4... Nf6 {[%clk 0:03:01.4]} 5. Nc3 {[%clk 0:03:00.3]}
5... g6 {[%clk 0:03:01.6]} 6. Nxc6 {[%clk 0:02:59.7]} 6... bxc6 {[%clk
0:03:01.5]} 7. e5 {[%clk 0:02:58.3]} 7... Nh5 {[%clk 0:03:01.9]} 8. Bc4 {[%clk
0:02:53.9]} 8... Qa5 {[%clk 0:02:58.8]} 9. Qe2 {[%clk 0:02:49.6]} 9... Ng7
{[%clk 0:02:51.6]} 10. Bd2 {[%clk 0:02:44.3]} 10... Ne6 {[%clk 0:02:49]} 11.
O-O-O {[%clk 0:02:36.8]} 11... Bg7 {[%clk 0:02:48.5]} 12. f4 {[%clk 0:02:34.2]}
12... Rb8 {[%clk 0:02:40.8]} 13. Kb1 {[%clk 0:02:26.2]} 13... O-O {[%clk
0:01:55.6]} 14. Qf2 {[%clk 0:01:48.9]} 14... d5 {[%clk 0:01:49.5]} 15. Nxd5
{[%clk 0:01:37.1]} 15... Qa3 {[%clk 0:01:39.6]} 16. Bb3 {[%clk 0:01:32.3]} 16...
Qa6 {[%clk 0:01:21.5]} 17. Nxe7+ {[%clk 0:01:29.7]} 17... Kh8 {[%clk 0:01:22.2]}
18. Nxc8 {[%clk 0:01:29.7]} 18... Rfxc8 {[%clk 0:01:22.5]} 19. Bc3 {[%clk
0:01:19.6]} 19... c5 {[%clk 0:01:18.1]} 20. Rd6 {[%clk 0:01:12.6]} 20... Qb5
{[%clk 0:01:02.1]} 21. Bxe6 {[%clk 0:01:10.5]} 21... fxe6 {[%clk 0:01:02.1]} 22.
Rxe6 {[%clk 0:01:08.7]} 22... Qc4 {[%clk 0:01:00.4]} 23. Rd6 {[%clk 0:00:42.7]}
23... Qxc3 {[%clk 0:00:59.6]} 24. b3 {[%clk 0:00:42.3]} 24... c4 {[%clk
0:00:58.5]} 25. Qd2 {[%clk 0:00:39.2]} 25... cxb3 {[%clk 0:00:56.3]} 26. axb3
{[%clk 0:00:38.9]} 26... Qc5 {[%clk 0:00:40.7]} 27. Rd1 {[%clk 0:00:37]} 27...
a5 {[%clk 0:00:39.7]} 28. Rd5 {[%clk 0:00:36.1]} 28... Qc6 {[%clk 0:00:37.3]}
29. Qxa5 {[%clk 0:00:30.6]} 29... Qxc2+ {[%clk 0:00:36.4]} 30. Ka1 {[%clk
0:00:30.5]} 30... Rg8 {[%clk 0:00:05.9]} 31. Rd8 {[%clk 0:00:29.1]} 31... Rbxd8
{[%clk 0:00:04.8]} 32. Rxd8 {[%clk 0:00:28.4]} 32... Qxb3 {[%clk 0:00:04.8]} 33.
Rxg8+ {[%clk 0:00:27.9]} 33... Qxg8 {[%clk 0:00:05.7]} 34. Qb5 {[%clk
0:00:24.4]} 34... Qf8 {[%clk 0:00:05.5]} 35. g3 {[%clk 0:00:23.4]} 35... h6
{[%clk 0:00:06]} 36. Kb1 {[%clk 0:00:21.5]} 36... Qe7 {[%clk 0:00:05.7]} 37. Kc2
{[%clk 0:00:21.7]} 37... g5 {[%clk 0:00:06.1]} 38. Kd3 {[%clk 0:00:19.1]} 38...
gxf4 {[%clk 0:00:05.8]} 39. gxf4 {[%clk 0:00:20]} 39... Qf7 {[%clk 0:00:04.1]}
40. Ke4 {[%clk 0:00:15.8]} 40... Qg6+ {[%clk 0:00:04.6]} 41. Kf3 {[%clk
0:00:15.6]} 41... Qe6 {[%clk 0:00:03.7]} 42. Qb8+ {[%clk 0:00:12.7]} 42... Kh7
{[%clk 0:00:03.7]} 43. Qb1+ {[%clk 0:00:13.1]} 43... Kg8 {[%clk 0:00:03.8]} 44.
Qe4 {[%clk 0:00:11.6]} 44... Qh3+ {[%clk 0:00:03.5]} 45. Ke2 {[%clk 0:00:12]}
45... Qxh2+ {[%clk 0:00:03.6]} 46. Kd3 {[%clk 0:00:12.5]} 46... Qg3+ {[%clk
0:00:04]} 47. Kd4 {[%clk 0:00:12.6]} 47... Qf2+ {[%clk 0:00:04.3]} 48. Kd5
{[%clk 0:00:12.7]} 48... Qa2+ {[%clk 0:00:04.7]} 49. Kd4 {[%clk 0:00:10.3]}
49... Qa4+ {[%clk 0:00:04.2]} 50. Ke3 {[%clk 0:00:10.6]} 50... Qa7+ {[%clk
0:00:03.2]} 51. Kf3 {[%clk 0:00:10.6]} 51... Qd7 {[%clk 0:00:03.8]} 52. f5
{[%clk 0:00:10.1]} 52... Qd1+ {[%clk 0:00:03.2]} 53. Kf4 {[%clk 0:00:10.2]}
53... Qf1+ {[%clk 0:00:03.4]} 54. Kg4 {[%clk 0:00:10.1]} 54... Qg1+ {[%clk
0:00:03.3]} 55. Kf4 {[%clk 0:00:10.2]} 55... Qh2+ {[%clk 0:00:03.7]} 56. Kf3
{[%clk 0:00:09.8]} 56... Bxe5 {[%clk 0:00:03.3]} 57. Qd5+ {[%clk 0:00:09.9]}
57... Kg7 {[%clk 0:00:03.4]} 58. Qd7+ {[%clk 0:00:09.6]} 58... Kh8 {[%clk
0:00:02.5]} 59. Qe8+ {[%clk 0:00:09.6]} 59... Kh7 {[%clk 0:00:02.8]} 60. Qg6+
{[%clk 0:00:09.6]} 60... Kh8 {[%clk 0:00:02.7]} 61. Qe8+ {[%clk 0:00:09.8]}
61... Kg7 {[%clk 0:00:03.2]} 62. Qg6+ {[%clk 0:00:09.6]} 62... Kf8 {[%clk
0:00:03.6]} 63. Ke4 {[%clk 0:00:09.3]} 63... Qf4+ {[%clk 0:00:03.3]} 64. Kd5
{[%clk 0:00:09.7]} 64... Bg7 {[%clk 0:00:01.4]} 65. Qd6+ {[%clk 0:00:07.7]}
65... Qxd6+ {[%clk 0:00:01.8]} 66. Kxd6 {[%clk 0:00:08.6]} 66... h5 {[%clk
0:00:02.4]} 67. Kd5 {[%clk 0:00:09.1]} 67... h4 {[%clk 0:00:03]} 68. Ke4 {[%clk
0:00:09.5]} 68... Be5 {[%clk 0:00:03.4]} 69. Kf3 {[%clk 0:00:08.6]} 69... Kf7
{[%clk 0:00:03.8]} 70. Kg4 {[%clk 0:00:08.6]} 70... Bg3 {[%clk 0:00:04.3]} 71.
Kh3 {[%clk 0:00:07.7]} 71... Kf6 {[%clk 0:00:05.2]} 72. Kg2 {[%clk 0:00:07.8]}
72... Kxf5 {[%clk 0:00:06.1]} 73. Kh1 {[%clk 0:00:08.2]} 73... Kg4 {[%clk
0:00:06.8]} 74. Kg2 {[%clk 0:00:08.6]} 74... Bd6 {[%clk 0:00:05.7]} 75. Kh1
{[%clk 0:00:09.5]} 75... Kh3 {[%clk 0:00:05.7]} 76. Kg1 {[%clk 0:00:09.7]} 76...
Bh2+ {[%clk 0:00:06.3]} 77. Kh1 {[%clk 0:00:10.6]} 77... Bb8 {[%clk 0:00:06]}
78. Kg1 {[%clk 0:00:10.7]} 78... Kg3 {[%clk 0:00:06.3]} 79. Kh1 {[%clk
0:00:11.6]} 79... h3 {[%clk 0:00:07.2]} 80. Kg1 {[%clk 0:00:11.2]} 80... Ba7+
{[%clk 0:00:07.5]} 81. Kh1 {[%clk 0:00:12.1]} 81... Bg1 {[%clk 0:00:08.1]} 82.
Kxg1 {[%clk 0:00:12]} 82... h2+ {[%clk 0:00:09]} 83. Kh1 {[%clk 0:00:12.9]}
83... Kf2 {[%clk 0:00:08.1]} 84. Kxh2 {[%clk 0:00:12.4]} 1/2-1/2

[Event "*** Titled Tuesday Blitz"]
[Site "Chess.com"]
[Date "2021.04.20"]
[Round "5"]
[White "chessdjw"]
[Black "Gerodot71"]
[Result "0-1"]
[WhiteElo "2736"]
[BlackElo "2594"]
[TimeControl "180+1"]
[EndTime "10:56:41 PDT"]
[Termination "Gerodot71 won by resignation"]

1. e4 {[%clk 0:02:43]} 1... e5 {[%clk 0:02:44.5]} 2. Nf3 {[%clk 0:02:37.9]} 2...
Nc6 {[%clk 0:02:44.6]} 3. Bb5 {[%clk 0:02:37.7]} 3... a6 {[%clk 0:02:44.8]} 4.
Ba4 {[%clk 0:02:37.5]} 4... Nf6 {[%clk 0:02:44.3]} 5. O-O {[%clk 0:02:33]} 5...
Be7 {[%clk 0:02:44.5]} 6. Re1 {[%clk 0:02:29]} 6... b5 {[%clk 0:02:44.4]} 7. Bb3
{[%clk 0:02:24.4]} 7... d6 {[%clk 0:02:44.7]} 8. c3 {[%clk 0:02:17.4]} 8... O-O
{[%clk 0:02:43.9]} 9. h3 {[%clk 0:02:14.8]} 9... Nb8 {[%clk 0:02:43.4]} 10. d4
{[%clk 0:01:58.4]} 10... Nbd7 {[%clk 0:02:41.5]} 11. Nbd2 {[%clk 0:01:58.8]}
11... Bb7 {[%clk 0:02:38.9]} 12. Bc2 {[%clk 0:01:55.3]} 12... Re8 {[%clk
0:02:38.7]} 13. Nf1 {[%clk 0:01:55.9]} 13... Bf8 {[%clk 0:02:39]} 14. Ng3 {[%clk
0:01:56.6]} 14... g6 {[%clk 0:02:38.8]} 15. Bd2 {[%clk 0:01:56.5]} 15... Bg7
{[%clk 0:02:24.3]} 16. Qc1 {[%clk 0:01:56.4]} 16... c6 {[%clk 0:02:19.4]} 17.
Bg5 {[%clk 0:01:34.8]} 17... Qc7 {[%clk 0:02:18.5]} 18. Bh6 {[%clk 0:01:30.8]}
18... Nf8 {[%clk 0:01:55.1]} 19. Bxg7 {[%clk 0:01:20.1]} 19... Kxg7 {[%clk
0:01:56]} 20. Qg5 {[%clk 0:01:13]} 20... Ng8 {[%clk 0:01:40.5]} 21. Bb3 {[%clk
0:00:57.6]} 21... Ne6 {[%clk 0:01:26.1]} 22. Bxe6 {[%clk 0:00:40.8]} 22... Rxe6
{[%clk 0:01:27]} 23. dxe5 {[%clk 0:00:41.4]} 23... dxe5 {[%clk 0:01:26.8]} 24.
Rad1 {[%clk 0:00:41.9]} 24... h6 {[%clk 0:00:57.2]} 25. Qe3 {[%clk 0:00:32.4]}
25... Rd8 {[%clk 0:00:52.1]} 26. Nh2 {[%clk 0:00:27.7]} 26... Red6 {[%clk
0:00:40.2]} 27. Rxd6 {[%clk 0:00:26.5]} 27... Qxd6 {[%clk 0:00:41.1]} 28. Nf3
{[%clk 0:00:19.3]} 28... c5 {[%clk 0:00:36.7]} 29. Kh2 {[%clk 0:00:18.7]} 29...
c4 {[%clk 0:00:36.5]} 30. Re2 {[%clk 0:00:18.9]} 30... Qd3 {[%clk 0:00:34.6]}
31. Nxe5 {[%clk 0:00:17.8]} 31... Qxe3 {[%clk 0:00:31.6]} 32. Rxe3 {[%clk
0:00:15.4]} 32... Rd2 {[%clk 0:00:29.9]} 33. b3 {[%clk 0:00:12.2]} 33... Rxa2
{[%clk 0:00:23.1]} 34. bxc4 {[%clk 0:00:12.5]} 34... f6 {[%clk 0:00:18.8]} 35.
Nd3 {[%clk 0:00:08.2]} 35... bxc4 {[%clk 0:00:18.9]} 36. Nc5 {[%clk 0:00:08.7]}
36... Bc8 {[%clk 0:00:17.3]} 37. Re1 {[%clk 0:00:08.5]} 37... Rd2 {[%clk
0:00:17.3]} 38. Rb1 {[%clk 0:00:08.3]} 38... Ne7 {[%clk 0:00:15.8]} 39. Rb8
{[%clk 0:00:08.2]} 39... Rc2 {[%clk 0:00:14.3]} 40. Ra8 {[%clk 0:00:07.5]} 40...
Rxc3 {[%clk 0:00:12.6]} 41. Ra7 {[%clk 0:00:07.7]} 41... Kf8 {[%clk 0:00:13.2]}
42. Ne2 {[%clk 0:00:07.3]} 42... Rd3 {[%clk 0:00:11]} 43. Nf4 {[%clk 0:00:07.1]}
43... Rd6 {[%clk 0:00:08.3]} 44. Rc7 {[%clk 0:00:06.4]} 44... c3 {[%clk
0:00:07.9]} 45. Nxg6+ {[%clk 0:00:06.6]} 45... Nxg6 {[%clk 0:00:07]} 46. Rxc8+
{[%clk 0:00:07.1]} 46... Ke7 {[%clk 0:00:06.5]} 47. Rc7+ {[%clk 0:00:05.6]}
47... Kd8 {[%clk 0:00:05.7]} 48. Rg7 {[%clk 0:00:05.9]} 48... Rc6 {[%clk
0:00:03.5]} 49. Nb7+ {[%clk 0:00:06.3]} 49... Kc8 {[%clk 0:00:03.8]} 50. Na5
{[%clk 0:00:06.7]} 50... c2 {[%clk 0:00:03.2]} 51. Nxc6 {[%clk 0:00:06.7]} 51...
c1=Q {[%clk 0:00:03.6]} 52. Nd4 {[%clk 0:00:06.8]} 52... Qf4+ {[%clk 0:00:03.5]}
53. Kg1 {[%clk 0:00:06.2]} 53... Qc1+ {[%clk 0:00:03.9]} 54. Kh2 {[%clk
0:00:05.7]} 54... Ne5 {[%clk 0:00:04.8]} 55. Ne6 {[%clk 0:00:04.9]} 55... Qe1
{[%clk 0:00:03.7]} 56. f4 {[%clk 0:00:04]} 56... Nd3 {[%clk 0:00:03.9]} 57. Rc7+
{[%clk 0:00:03.7]} 57... Kb8 {[%clk 0:00:04]} 58. Rd7 {[%clk 0:00:04.2]} 58...
Nf2 {[%clk 0:00:04]} 59. Nc5 {[%clk 0:00:03.9]} 59... Nxe4 {[%clk 0:00:03.7]}
60. Nxa6+ {[%clk 0:00:03.8]} 60... Kc8 {[%clk 0:00:04]} 61. Rc7+ {[%clk
0:00:03.9]} 61... Kd8 {[%clk 0:00:04.4]} 62. Rh7 {[%clk 0:00:04.7]} 62... Qg3+
{[%clk 0:00:04.7]} 63. Kh1 {[%clk 0:00:05.2]} 63... Qxf4 {[%clk 0:00:05.1]} 64.
Nc7 {[%clk 0:00:03.7]} 64... Qxc7 {[%clk 0:00:04.6]} 65. Rxc7 {[%clk 0:00:03.1]}
65... Kxc7 {[%clk 0:00:05.5]} 66. Kg1 {[%clk 0:00:03.7]} 66... Kd6 {[%clk
0:00:06.1]} 67. Kf1 {[%clk 0:00:04.6]} 67... Ke5 {[%clk 0:00:06.8]} 68. Ke2
{[%clk 0:00:05.5]} 68... Kf4 {[%clk 0:00:07.3]} 69. Kf1 {[%clk 0:00:05.5]} 69...
Kg3 {[%clk 0:00:07.4]} 70. Kg1 {[%clk 0:00:06.4]} 70... f5 {[%clk 0:00:06.9]}
71. Kh1 {[%clk 0:00:07.3]} 71... f4 {[%clk 0:00:07.5]} 72. Kg1 {[%clk
0:00:08.2]} 72... Nc3 {[%clk 0:00:07]} 73. Kf1 {[%clk 0:00:08.6]} 73... Nd1
{[%clk 0:00:07.6]} 74. Kg1 {[%clk 0:00:09.5]} 74... Ne3 {[%clk 0:00:08.2]} 75.
Kh1 {[%clk 0:00:10.4]} 75... Nxg2 {[%clk 0:00:08.6]} 76. h4 {[%clk 0:00:10.5]}
76... Ne3 {[%clk 0:00:08.5]} 77. h5 {[%clk 0:00:11.4]} 77... f3 {[%clk
0:00:08.9]} 78. Kg1 {[%clk 0:00:11.8]} 78... f2+ {[%clk 0:00:09.5]} 0-1